{"text_format":"3","workbook":"xlsx","n_sheets":2,"sheets":["DADOS DE CRESCIMENTO","GRÁFICO DE CRESCIMENTO"],"not_rendered":{"charts":1,"defined_names":3},"read":"whole","date_system":"1900"}

{"sheet":"DADOS DE CRESCIMENTO","index":0,"n_rows":23,"n_cols":8,"rows_kept":23,"merged":[[0,1,0,7],[1,2,1,7]]}
[null,"Crescimento do Bebé "]
[null,"Nome do Bebé:","Nome"]
[null,"Idade","Quilogramas","Gramas","Peso (kg)","Peso\nPercentil","Comprimento (cm)","Comprimento\nPercentil"]
[null,"Recém-nascido",7,null,{"$f":"IF(COUNT(Dados[[#This Row],[Quilogramas]:[Gramas]])>0,Dados[[#This Row],[Quilogramas]]+(Dados[[#This Row],[Gramas]]/1000),NA())","v":7},40,19.5,70]
[null,"4 dias",6,8,{"$f":"IF(COUNT(Dados[[#This Row],[Quilogramas]:[Gramas]])>0,Dados[[#This Row],[Quilogramas]]+(Dados[[#This Row],[Gramas]]/1000),NA())","v":6.008},41,19.5,70]
[null,"7 dias",6,4.8,{"$f":"IF(COUNT(Dados[[#This Row],[Quilogramas]:[Gramas]])>0,Dados[[#This Row],[Quilogramas]]+(Dados[[#This Row],[Gramas]]/1000),NA())","v":6.0048},42,20,71]
[null,"11 dias",6,9.6,{"$f":"IF(COUNT(Dados[[#This Row],[Quilogramas]:[Gramas]])>0,Dados[[#This Row],[Quilogramas]]+(Dados[[#This Row],[Gramas]]/1000),NA())","v":6.0096},43,20,71]
[null,"14 dias",7,null,{"$f":"IF(COUNT(Dados[[#This Row],[Quilogramas]:[Gramas]])>0,Dados[[#This Row],[Quilogramas]]+(Dados[[#This Row],[Gramas]]/1000),NA())","v":7},44,20,71]
[null,"18 dias",7,12,{"$f":"IF(COUNT(Dados[[#This Row],[Quilogramas]:[Gramas]])>0,Dados[[#This Row],[Quilogramas]]+(Dados[[#This Row],[Gramas]]/1000),NA())","v":7.012},45,21,72]
[null,"21 dias",8,8,{"$f":"IF(COUNT(Dados[[#This Row],[Quilogramas]:[Gramas]])>0,Dados[[#This Row],[Quilogramas]]+(Dados[[#This Row],[Gramas]]/1000),NA())","v":8.008},46,21,72]
[null,"25 dias",null,null,{"$f":"IF(COUNT(Dados[[#This Row],[Quilogramas]:[Gramas]])>0,Dados[[#This Row],[Quilogramas]]+(Dados[[#This Row],[Gramas]]/1000),NA())","v":{"$error":"#N/A"}}]
[null,"28 dias",null,null,{"$f":"IF(COUNT(Dados[[#This Row],[Quilogramas]:[Gramas]])>0,Dados[[#This Row],[Quilogramas]]+(Dados[[#This Row],[Gramas]]/1000),NA())","v":{"$error":"#N/A"}}]
[null,"5 semanas",null,null,{"$f":"IF(COUNT(Dados[[#This Row],[Quilogramas]:[Gramas]])>0,Dados[[#This Row],[Quilogramas]]+(Dados[[#This Row],[Gramas]]/1000),NA())","v":{"$error":"#N/A"}}]
[null,"6 semanas",null,null,{"$f":"IF(COUNT(Dados[[#This Row],[Quilogramas]:[Gramas]])>0,Dados[[#This Row],[Quilogramas]]+(Dados[[#This Row],[Gramas]]/1000),NA())","v":{"$error":"#N/A"}}]
[null,"7 semanas",null,null,{"$f":"IF(COUNT(Dados[[#This Row],[Quilogramas]:[Gramas]])>0,Dados[[#This Row],[Quilogramas]]+(Dados[[#This Row],[Gramas]]/1000),NA())","v":{"$error":"#N/A"}}]
[null,"2 meses",null,null,{"$f":"IF(COUNT(Dados[[#This Row],[Quilogramas]:[Gramas]])>0,Dados[[#This Row],[Quilogramas]]+(Dados[[#This Row],[Gramas]]/1000),NA())","v":{"$error":"#N/A"}}]
[null,"3 meses",null,null,{"$f":"IF(COUNT(Dados[[#This Row],[Quilogramas]:[Gramas]])>0,Dados[[#This Row],[Quilogramas]]+(Dados[[#This Row],[Gramas]]/1000),NA())","v":{"$error":"#N/A"}}]
[null,"6 meses",null,null,{"$f":"IF(COUNT(Dados[[#This Row],[Quilogramas]:[Gramas]])>0,Dados[[#This Row],[Quilogramas]]+(Dados[[#This Row],[Gramas]]/1000),NA())","v":{"$error":"#N/A"}}]
[null,"9 meses",null,null,{"$f":"IF(COUNT(Dados[[#This Row],[Quilogramas]:[Gramas]])>0,Dados[[#This Row],[Quilogramas]]+(Dados[[#This Row],[Gramas]]/1000),NA())","v":{"$error":"#N/A"}}]
[null,"12 meses",null,null,{"$f":"IF(COUNT(Dados[[#This Row],[Quilogramas]:[Gramas]])>0,Dados[[#This Row],[Quilogramas]]+(Dados[[#This Row],[Gramas]]/1000),NA())","v":{"$error":"#N/A"}}]
[null,"18 meses",null,null,{"$f":"IF(COUNT(Dados[[#This Row],[Quilogramas]:[Gramas]])>0,Dados[[#This Row],[Quilogramas]]+(Dados[[#This Row],[Gramas]]/1000),NA())","v":{"$error":"#N/A"}}]
[null,"24 meses",null,null,{"$f":"IF(COUNT(Dados[[#This Row],[Quilogramas]:[Gramas]])>0,Dados[[#This Row],[Quilogramas]]+(Dados[[#This Row],[Gramas]]/1000),NA())","v":{"$error":"#N/A"}}]
[null,"36 meses",null,null,{"$f":"IF(COUNT(Dados[[#This Row],[Quilogramas]:[Gramas]])>0,Dados[[#This Row],[Quilogramas]]+(Dados[[#This Row],[Gramas]]/1000),NA())","v":{"$error":"#N/A"}}]

{"sheet":"GRÁFICO DE CRESCIMENTO","index":1,"n_rows":1,"n_cols":2,"rows_kept":1,"merged":[[0,1,1,1]]}
[null,"GRÁFICO DE CRESCIMENTO DE BEBÉ"]